bitfinex-derivatives/quotes_ETHF0:USTF0_20260115
["timestamp","ask_amount","ask_price","bid_price","bid_amount"]
[1768445236718,0.97062978,3315.7,3314.4,0.00282733]
[1768445236918,0.97062978,3314.9,3314.4,0.00282733]
[1768445237220,0.97062978,3314.9,3313.8,3.017]
[1768445238021,0.97320213,3314.9,3313.8,3.02088944]
[1768445238313,4.60103444,3314.9,3313.8,0.00388944]
[1768445240410,3.41688127,3314.8,3313.8,0.00388944]
[1768445240612,4.38751105,3314.6,3313.4,1.275]
[1768445240917,0.00452536,3314.3,3313.4,1.275]
[1768445241609,0.00452536,3314.3,3313.4,1.27779395]
[1768445242210,0.00452536,3314.3,3313.6,0.97062978]
[1768445244219,0.97062978,3314.0,3312.6,0.97062978]
[1768445244426,0.97062978,3314.0,3312.7,1.276]
[1768445244621,0.97062978,3314.0,3312.3,6.57099698]
[1768445244920,0.97062978,3314.0,3312.5,0.97062978]
[1768445245123,4.40364258,3314.0,3312.3,3.55299698]
[1768445245316,0.97062978,3313.4,3312.3,0.00303317]
[1768445245516,3.4330128,3313.6,3312.3,1.27903317]
[1768445245724,0.97062978,3312.8,3310.6,3.55299698]
[1768445246022,0.00452536,3312.0,3311.5,0.97062978]
[1768445246222,3.4330128,3312.9,3311.5,0.97062978]
[1768445246418,3.5839228,3313.4,3312.1,0.97062978]
[1768445246725,0.97062978,3313.2,3312.1,0.0029991]
[1768445246922,0.97062978,3312.8,3310.8,3.55299698]
[1768445247122,4.40364258,3312.8,3311.4,0.97062978]
[1768445247426,0.00452536,3312.2,3311.4,1.276]
[1768445247629,3.4330128,3313.2,3311.4,1.276]
[1768445247829,3.4330128,3313.2,3311.5,3.55299698]
[1768445248128,0.00221698,3313.4,3311.5,3.55299698]
[1768445248129,0.00221698,3313.4,3311.5,3.55600415]
[1768445248822,0.00452536,3312.8,3312.1,0.00452536]
[1768445252422,0.00221698,3313.4,3312.1,0.00452536]
[1768445252622,0.00221698,3313.4,3312.1,3.55752234]
[1768445253021,3.4330128,3314.3,3312.4,3.55299698]
[1768445253222,3.4330128,3314.3,3312.5,1.276]
[1768445253424,3.4330128,3314.3,3312.6,3.55299698]
[1768445253623,0.00452536,3313.7,3312.6,3.55299698]
[1768445254023,0.00767507,3313.7,3312.6,3.55299698]
[1768445258535,0.15086,3314.6,3312.6,3.55299698]
[1768445259633,0.00452536,3313.9,3312.6,3.55299698]
[1768445260224,0.00230431,3314.6,3312.9,3.55299698]
[1768445261336,0.00452536,3314.1,3312.9,3.55299698]
[1768445262427,0.00230431,3314.6,3312.9,3.55299698]
[1768445264429,0.00230431,3314.6,3313.1,3.55299698]
[1768445265630,0.00230431,3314.6,3311.7,6.457]
[1768445265631,3.5838828,3314.3,3312.1,3.70849234]
[1768445265835,3.4330128,3314.1,3312.1,3.70849234]
[1768445266037,3.4330128,3313.9,3312.1,3.70849234]
[1768445266231,0.8786578,3313.8,3312.2,1.277]
[1768445266431,0.87861687,3313.7,3312.2,1.277]
[1768445266631,0.87863285,3313.6,3312.2,1.277]
[1768445266831,3.5839028,3313.9,3312.2,1.277]
[1768445267032,0.87863275,3313.8,3312.2,1.277]
[1768445267240,0.87863275,3313.7,3312.2,1.277]
[1768445267442,4.31164555,3313.6,3312.2,1.277]
[1768445267643,4.31179505,3313.5,3312.1,0.00452536]
[1768445267938,4.31175667,3313.4,3312.2,1.277]
[1768445268142,3.4330128,3313.4,3312.2,1.277]
[1768445268734,3.4330128,3313.4,3312.1,0.00452536]
[1768445268934,3.4330128,3313.2,3312.1,0.00452536]
[1768445269441,4.31191323,3313.1,3312.1,0.00452536]
[1768445269736,3.4330128,3313.1,3312.1,0.00452536]
[1768445271231,4.27369485,3313.0,3312.1,0.00452536]
[1768445271436,4.27369485,3312.9,3311.5,0.00300717]
[1768445271646,0.15092,3313.3,3311.5,0.00300717]
[1768445271647,4.27369485,3312.8,3311.5,1.28000717]
[1768445271841,3.39477065,3312.8,3311.5,1.28000717]
[1768445272037,3.39477065,3312.8,3311.5,0.00300717]
[1768445272233,0.87890706,3312.7,3311.5,1.28000717]
[1768445272439,0.00452536,3312.4,3311.8,0.00452536]
[1768445272740,0.00452536,3312.4,3311.5,1.28000717]
[1768445273652,0.00452536,3312.4,3311.6,0.00452536]
[1768445275047,3.39477065,3313.3,3311.6,3.53765225]
[1768445275248,0.87901316,3313.2,3311.6,3.53765225]
[1768445275453,0.87901316,3313.1,3311.6,3.53765225]
[1768445275654,0.15091,3313.5,3311.6,3.53765225]
[1768445275848,0.87916205,3313.4,3311.6,3.53765225]
[1768445276043,0.87916205,3313.3,3311.6,3.68864225]
[1768445276242,0.87916205,3313.2,3311.6,3.68864225]
[1768445276541,0.15094,3312.8,3311.6,0.00452536]
[1768445276741,4.27387554,3312.7,3311.6,0.00452536]
[1768445276943,0.87910489,3312.6,3311.6,0.00452536]
[1768445277145,3.39477065,3312.7,3311.6,0.00452536]
[1768445277344,0.87924865,3312.6,3311.6,0.00452536]
[1768445277549,3.39477065,3312.7,3311.6,0.00452536]
[1768445277753,0.87917153,3312.6,3311.6,0.00452536]
[1768445277951,3.39477065,3312.7,3311.6,0.00452536]
[1768445278253,4.27394086,3312.6,3311.6,0.00452536]
[1768445278441,0.87917021,3312.5,3311.6,0.00452536]
[1768445278748,3.39477065,3312.6,3311.6,0.00452536]
[1768445278948,0.88077472,3312.5,3311.6,0.00452536]
[1768445279149,3.39477065,3312.6,3311.6,0.00452536]
[1768445279545,0.00452536,3312.4,3311.6,0.00452536]
[1768445280545,0.00452536,3312.4,3310.6,1.277]
[1768445280546,4.27533617,3312.3,3310.6,1.277]
[1768445280744,3.39477065,3312.3,3310.6,1.277]
[1768445281354,3.39477065,3312.1,3310.6,1.277]
[1768445281547,3.39477065,3311.9,3309.4,3.68421689]
[1768445281849,0.88029767,3312.0,3309.4,3.68421689]
[1768445281850,3.39477065,3311.5,3309.5,1.277]
[1768445282042,3.39477065,3311.3,3309.5,1.277]
[1768445282242,3.39477065,3311.6,3309.6,3.53312689]
[1768445282453,0.87890667,3311.5,3309.6,3.53312689]
[1768445282664,0.00452536,3310.9,3310.2,0.00452536]
[1768445283460,0.00452536,3310.9,3309.6,0.00256151]
[1768445284355,0.00452536,3310.9,3309.6,3.6867684]
[1768445285557,0.00452536,3310.9,3309.9,0.00452536]
[1768445285744,3.39477065,3311.7,3309.9,3.53765225]
[1768445286856,0.00452536,3311.1,3309.9,3.53765225]
[1768445287461,0.00452536,3311.1,3309.9,0.00452536]
[1768445290462,3.39929601,3311.1,3309.9,0.00452536]
[1768445292258,3.55031601,3311.1,3309.9,0.00452536]
[1768445292463,3.55031601,3311.1,3309.6,0.00256151]
[1768445293062,3.39477065,3310.9,3309.6,0.00256151]
[1768445293475,3.39477065,3310.9,3309.9,0.00452536]
[1768445294063,0.00452536,3311.1,3309.9,0.00452536]
[1768445294254,3.39929601,3311.1,3309.9,0.00452536]
[1768445295061,0.00452536,3311.1,3309.9,0.00452536]
[1768445296156,3.39929601,3311.1,3309.9,0.00452536]
[1768445296757,0.00452536,3311.1,3309.9,0.00452536]
[1768445296963,0.00452536,3311.1,3309.9,3.53765225]
[1768445297150,0.00452536,3311.1,3309.9,3.68872225]
[1768445297357,3.54908856,3312.1,3310.2,0.15106]
[1768445297655,3.39811856,3312.1,3310.2,3.68418689]
[1768445298162,3.39811856,3312.1,3309.9,0.00452536]
[1768445298163,0.00334791,3312.1,3310.3,3.53312689]
[1768445298362,0.00334791,3312.1,3310.5,3.53312689]
[1768445299455,0.00452536,3311.6,3310.5,3.53312689]
[1768445299852,0.00334791,3312.1,3310.7,3.53312689]
[1768445300964,0.00334791,3312.1,3310.6,0.15104]
[1768445301457,0.00334791,3312.1,3310.6,3.52090917]
[1768445302657,3.39232792,3313.2,3310.9,3.58667227]
[1768445302861,0.88029535,3313.1,3311.7,0.00452536]
[1768445303059,0.88029535,3313.0,3311.7,0.00452536]
[1768445303256,0.88029535,3312.9,3311.7,0.00452536]
[1768445303462,0.88029535,3312.8,3311.7,0.00452536]
[1768445303669,0.00366502,3312.8,3311.7,0.00452536]
[1768445304364,0.00452536,3312.6,3311.7,0.00452536]
[1768445304564,0.00366502,3312.8,3311.7,0.00452536]
[1768445304770,0.00366502,3312.8,3311.8,1.276]
[1768445309967,0.00366502,3312.8,3311.7,0.00452536]
[1768445311567,3.39599294,3312.8,3311.7,0.00452536]
[1768445315167,0.00366502,3312.8,3311.7,0.00452536]
[1768445318568,0.00366502,3312.8,3311.7,3.59119763]
[1768445318773,3.39232792,3313.9,3311.8,3.58667227]
[1768445318983,0.87991632,3313.8,3312.0,3.73764227]
[1768445319169,0.87991632,3313.7,3312.1,4.86167227]
[1768445319370,3.39232792,3313.9,3312.1,4.86167227]
[1768445319570,3.54322792,3313.7,3311.7,0.00452536]
[1768445319785,3.39232792,3313.5,3311.7,0.00772047]
[1768445319972,4.27215311,3313.4,3311.7,0.00772047]
[1768445320172,0.87982519,3313.3,3311.7,0.00772047]
[1768445320480,3.39232792,3313.4,3311.7,0.00772047]
[1768445320670,0.87975998,3313.3,3311.7,0.00772047]
[1768445320976,3.39232792,3313.4,3311.7,0.00772047]
[1768445321178,0.8797619,3313.3,3311.7,0.00772047]
[1768445321379,3.39232792,3313.4,3311.7,0.00772047]
[1768445321581,0.15364678,3313.7,3311.7,3.59439274]
[1768445321779,0.88001503,3313.6,3311.7,3.59439274]
[1768445321979,0.88001503,3313.5,3311.7,3.59439274]
[1768445322181,0.88001503,3313.4,3311.7,3.59439274]
[1768445322375,0.88001503,3313.3,3311.7,3.74538274]
[1768445322567,3.3950747,3313.7,3311.9,3.58667227]
[1768445322783,0.00274678,3313.7,3312.2,3.73764227]
[1768445323180,0.00274678,3313.7,3312.3,3.73763227]
[1768445323379,0.00274678,3313.7,3312.4,3.73763227]
[1768445323580,0.00274678,3313.7,3312.5,4.86167227]
[1768445325076,0.00274678,3313.7,3312.5,5.01262227]
[1768445325688,3.39232792,3314.7,3312.7,3.58667227]
[1768445325888,4.27392031,3314.6,3313.4,0.00452536]
[1768445326179,4.27392031,3314.5,3313.4,0.00452536]
[1768445326383,0.88159239,3314.4,3313.4,0.00452536]
[1768445326777,0.88469768,3314.4,3313.4,0.00452536]
[1768445326978,0.88159239,3314.3,3313.4,0.00452536]
[1768445327585,0.00310529,3314.4,3313.4,0.00452536]
[1768445329482,0.00310529,3314.4,3313.5,1.274]
[1768445330186,3.39232792,3315.1,3313.5,1.274]
[1768445330389,0.88145567,3315.0,3313.5,1.274]
[1768445330590,4.50064678,3314.9,3313.5,1.274]
[1768445330790,4.50064678,3314.8,3313.4,0.00452536]
[1768445330975,4.50064678,3314.7,3313.4,1.27852536]
[1768445331286,3.62219659,3314.7,3313.4,0.00452536]
[1768445331483,3.61919111,3314.5,3313.4,0.00452536]
[1768445331686,3.61919111,3314.3,3312.7,1.189]
[1768445331988,4.50035401,3314.2,3312.7,1.189]
[1768445332291,3.61919111,3314.2,3312.7,1.189]
[1768445332593,3.61919111,3314.2,3313.1,0.00452536]
[1768445333888,0.00300548,3314.7,3313.1,0.00452536]
[1768445334189,0.88094414,3314.6,3313.1,0.00452536]
[1768445334488,0.88094414,3314.5,3313.1,0.00452536]
[1768445334691,0.88094414,3314.4,3313.1,0.00452536]
[1768445334985,0.88094414,3314.3,3313.1,0.00452536]
[1768445335293,0.00452536,3314.0,3313.1,0.00452536]
[1768445341391,3.61919111,3313.9,3312.6,0.15095]
[1768445341688,3.61919111,3313.9,3312.6,1.42395]
[1768445342291,3.61919111,3313.9,3312.0,0.15098]
[1768445342497,3.61919111,3313.9,3312.6,0.00452536]
[1768445342792,0.00452536,3314.0,3312.6,3.5864383]
[1768445342994,0.00300548,3314.7,3313.1,0.15092]
[1768445343194,0.88111877,3314.6,3313.1,0.15092]
[1768445343495,0.88111877,3314.5,3313.1,0.15092]
[1768445343686,0.00300548,3314.7,3313.1,3.73283294]
[1768445343883,0.88124564,3314.6,3313.2,0.15092]
[1768445344084,0.00452536,3314.2,3313.2,3.73283294]
[1768445344391,0.00300548,3314.7,3313.3,3.73283294]
[1768445344590,3.62219659,3314.7,3312.8,3.58191294]
[1768445344791,3.61919111,3314.5,3312.9,1.273]
[1768445344993,0.88144289,3314.4,3312.9,1.273]
[1768445350299,0.88144289,3314.4,3313.0,3.58191294]
[1768445350506,0.88144289,3314.3,3313.0,3.58191294]
[1768445350703,0.88144289,3314.2,3313.0,3.58191294]
[1768445351002,3.62219659,3314.7,3313.0,3.58191294]
[1768445351192,0.88346352,3314.6,3313.0,3.58191294]
[1768445351396,0.88346352,3314.5,3313.0,3.58191294]
[1768445351700,0.88346352,3314.4,3313.0,3.58191294]
[1768445351900,0.88346352,3314.3,3313.0,3.58191294]
[1768445352091,0.88346352,3314.2,3313.0,3.58191294]
[1768445352292,0.88346352,3314.1,3313.0,3.58191294]
[1768445352494,3.62219659,3314.7,3313.0,3.58191294]
[1768445352696,0.88449613,3314.6,3313.0,3.58191294]
[1768445352900,0.88449613,3314.5,3313.0,3.58191294]
[1768445353203,0.88449613,3314.4,3313.0,3.58191294]
[1768445353399,0.88449613,3314.3,3313.0,3.73284294]
[1768445353697,0.00300548,3314.7,3313.0,3.73284294]
[1768445353902,0.88496136,3314.6,3313.3,5.06928225]
[1768445354204,0.88496136,3314.5,3313.4,3.73282294]
[1768445354405,0.00300548,3314.7,3313.4,3.73282294]
[1768445354598,0.88496798,3314.6,3313.4,3.73282294]
[1768445354794,0.00300548,3314.7,3313.4,3.73282294]
[1768445354994,0.88496853,3314.6,3313.4,3.73282294]
[1768445355196,0.00300548,3314.7,3313.4,3.73282294]
[1768445357204,2.15405125,3315.8,3313.7,3.73281294]
[1768445357405,3.61919111,3315.9,3313.8,2.91125931]
[1768445357599,3.61919111,3315.9,3314.4,0.00452536]
[1768445358507,3.61919111,3315.9,3314.4,0.00840657]
[1768445358508,3.62133382,3315.9,3314.4,0.00840657]
[1768445365309,0.00214271,3315.9,3314.5,3.57987953]
[1768445366312,0.00214271,3315.9,3314.8,0.15084]
[1768445366518,0.00214271,3315.9,3314.9,3.018]
[1768445366714,3.57648721,3315.9,3314.7,3.018]
[1768445366914,3.57648721,3315.9,3314.8,1.272]
[1768445368018,3.57648721,3315.9,3314.7,1.272]
[1768445369126,3.57648721,3315.9,3314.6,1.272]
[1768445369412,3.57648721,3315.9,3314.4,0.00840657]
[1768445369613,0.87697131,3315.8,3314.5,1.272]
[1768445369818,0.00214271,3315.9,3314.5,1.272]
[1768445371615,0.00214271,3315.9,3314.5,1.42286]
[1768445373223,0.00214271,3315.9,3314.5,0.15086]
[1768445373421,3.57648721,3315.9,3314.6,1.271]
[1768445373920,0.00214271,3315.9,3314.7,3.57987953]
[1768445374120,0.00214271,3315.9,3314.6,1.271]
[1768445374121,3.5743445,3317.0,3314.9,5.21808884]
[1768445374422,0.15074,3317.2,3314.9,5.21808884]
[1768445374423,4.45157949,3316.9,3315.1,0.15083]
[1768445374722,0.87723499,3316.8,3315.1,0.15083]
[1768445374917,3.5743445,3316.9,3315.1,0.15083]
[1768445375114,0.87700808,3316.8,3315.1,0.15083]
[1768445375421,3.57666131,3316.9,3315.1,0.15083]
[1768445375723,0.87687562,3316.8,3315.1,0.15083]
[1768445376022,3.5743445,3316.8,3315.1,0.15083]
[1768445379519,3.5743445,3316.6,3315.2,1.271]
[1768445381223,3.5743445,3316.6,3314.4,1.49577588]
[1768445381519,3.5743445,3316.4,3314.6,0.15086]
[1768445382127,3.5743445,3316.4,3314.7,3.73072953]
[1768445383027,3.5743445,3316.4,3314.7,0.15085]
[1768445383529,3.5743445,3316.2,3314.7,0.15085]
[1768445384528,3.5743445,3316.2,3314.8,1.271]
[1768445385228,3.5743445,3316.2,3314.7,1.42185]
[1768445393320,3.51005228,3316.0,3314.8,1.27]
[1768445393523,3.51005228,3316.0,3314.7,0.15085]
[1768445393726,3.51005228,3316.0,3314.8,1.27]
[1768445394426,3.51005228,3315.8,3314.8,1.27]
[1768445396729,3.51005228,3315.8,3314.4,0.00840657]
[1768445396935,3.51005228,3315.6,3314.4,1.27840657]
[1768445398337,0.88115453,3315.5,3314.4,1.27840657]
[1768445398533,3.51005228,3315.6,3314.4,1.27840657]
[1768445398735,0.88103601,3315.5,3314.4,1.27840657]
[1768445398933,3.51005228,3315.6,3314.4,1.27840657]
[1768445399135,0.88103712,3315.5,3314.4,1.27840657]
[1768445399435,3.51005228,3315.6,3314.4,1.27840657]
[1768445399629,0.88095389,3315.5,3314.4,1.27840657]
[1768445399830,3.51005228,3315.6,3314.4,1.27840657]
[1768445400137,0.88095461,3315.5,3314.4,1.27840657]
[1768445400438,3.51005228,3315.6,3314.4,1.27840657]
[1768445400641,0.8809682,3315.5,3314.4,1.27840657]
[1768445400831,3.51005228,3315.6,3314.4,1.27840657]
[1768445401139,4.39088567,3315.5,3314.4,1.27840657]
[1768445401332,3.51005228,3315.5,3314.4,1.27840657]
[1768445401530,3.51005228,3315.3,3314.4,0.00840657]
[1768445401730,3.51005228,3315.1,3314.4,0.00840657]
[1768445402631,3.51005228,3315.9,3314.4,0.00840657]
[1768445402830,0.88042614,3315.8,3314.4,0.00840657]
[1768445403026,0.88042614,3315.7,3314.4,0.00840657]
[1768445403234,3.51005228,3315.9,3314.4,0.00840657]
[1768445403424,0.88004492,3315.8,3314.4,0.00840657]
[1768445403628,3.51005228,3315.9,3314.5,0.15086]
[1768445403839,3.51005228,3316.6,3314.5,0.15086]
[1768445404042,3.51005228,3316.4,3314.5,0.15086]
[1768445404340,3.51005228,3316.2,3314.6,1.27]
[1768445404534,3.51005228,3316.0,3314.6,1.27]
[1768445410046,3.51005228,3316.5,3314.6,1.42086]
[1768445410344,4.39095277,3316.4,3314.6,1.42086]
[1768445410545,0.88090049,3316.3,3314.6,1.42086]
[1768445411438,0.88090049,3316.3,3314.7,0.15085]
[1768445411638,0.88090049,3316.3,3314.8,0.15085]
[1768445413049,3.51005228,3316.4,3314.8,0.15085]
[1768445413647,3.51005228,3316.4,3314.9,0.15084]
[1768445415149,3.51236909,3316.9,3315.0,3.68482102]
[1768445415343,4.39101114,3316.8,3315.0,3.68482102]
[1768445415543,4.39101114,3316.7,3315.0,3.68482102]
[1768445415743,0.88095886,3316.6,3315.0,3.68482102]
[1768445415943,0.88095886,3316.5,3315.0,3.68482102]
[1768445416145,3.51005228,3316.7,3315.0,3.68482102]
[1768445416342,0.88085307,3316.6,3315.0,3.68482102]
[1768445416543,0.88085307,3316.5,3315.0,3.68482102]
[1768445416749,3.51005228,3316.7,3315.0,3.68482102]
[1768445416946,4.39087113,3316.6,3315.0,3.68482102]
[1768445417150,3.51005228,3316.4,3315.0,0.15084]
[1768445417551,3.51005228,3316.4,3314.4,0.00840657]
[1768445417755,3.51005228,3316.2,3314.6,3.017]
[1768445417949,3.51005228,3316.2,3314.6,3.16786]
[1768445419055,3.51005228,3316.2,3314.6,3.017]
[1768445420561,3.51005228,3316.2,3314.8,0.15085]
[1768445421261,3.51005228,3316.2,3314.9,1.27]
[1768445423062,3.51005228,3316.2,3314.8,0.15085]
[1768445423359,3.51005228,3316.2,3314.9,1.27]
[1768445428667,3.51005228,3316.2,3314.9,1.42084]
[1768445430868,3.44219587,3316.6,3314.9,1.42084]
[1768445431071,4.32321357,3316.5,3314.9,1.42084]
[1768445431270,3.44219587,3316.5,3314.9,1.42084]
[1768445432069,0.88162154,3316.4,3314.9,1.42084]
[1768445432270,3.44219587,3316.5,3314.9,1.42084]
[1768445432574,0.88162066,3316.4,3314.9,1.42084]
[1768445432868,3.44219587,3316.5,3315.0,0.15084]
[1768445433066,3.44451268,3316.9,3315.1,0.15083]
[1768445433258,4.32406395,3316.8,3314.9,4.78765536]
[1768445433464,0.88186808,3316.7,3314.9,4.78765536]
[1768445434575,0.88186808,3316.7,3315.2,0.15083]
[1768445434967,0.88186808,3316.7,3315.3,0.15082]
[1768445436581,3.44219587,3316.8,3315.3,0.15082]
[1768445436878,0.00231681,3316.9,3315.8,0.1508]
[1768445437175,0.00231681,3316.9,3315.9,1.269]
[1768445437374,3.44451268,3316.9,3316.1,0.00452536]
[1768445437570,3.44451268,3316.9,3316.1,1.27352536]
[1768445437767,3.44451268,3316.9,3315.6,3.017]
[1768445437968,3.44451268,3316.9,3315.9,1.269]
[1768445438168,3.44451268,3316.9,3315.3,0.15082]
[1768445438378,3.44219587,3316.7,3315.4,1.269]
[1768445438869,3.44219587,3316.7,3315.7,0.00452536]
[1768445439774,0.00452536,3316.5,3315.7,0.00452536]
[1768445440977,3.44672123,3316.5,3315.7,0.00452536]
[1768445441482,3.44451268,3316.9,3315.7,0.00452536]
[1768445441676,0.88164145,3316.8,3315.7,0.00452536]
[1768445441876,0.88164145,3316.7,3315.7,0.00452536]
[1768445442080,3.44219587,3316.8,3315.7,0.00452536]
[1768445442270,0.88166725,3316.7,3315.7,0.00452536]
[1768445442470,3.44219587,3316.8,3315.7,0.00452536]
[1768445442769,0.8816654,3316.7,3315.7,0.00452536]
[1768445443083,3.44219587,3316.8,3315.7,0.00452536]
[1768445443281,0.88165764,3316.7,3315.7,0.00452536]
[1768445443476,3.44219587,3316.8,3315.7,0.00452536]
[1768445443673,0.88166089,3316.7,3315.7,0.00452536]
[1768445443873,3.44219587,3316.5,3315.7,0.00452536]
[1768445444074,3.44219587,3316.5,3315.5,1.269]
[1768445444275,3.44219587,3316.5,3315.5,2.2392471]
[1768445444782,3.44219587,3316.5,3315.5,1.269]
[1768445445080,3.44219587,3316.5,3315.7,0.00452536]
[1768445448785,0.00452536,3316.4,3315.7,0.00452536]
[1768445453289,0.00452536,3316.4,3315.8,0.97038187]
[1768445458208,0.00452536,3316.4,3315.7,0.00452536]
[1768445458392,0.00452536,3316.4,3315.8,0.97038187]
[1768445460602,3.44219587,3316.5,3315.7,0.00452536]
[1768445460808,3.45831625,3316.9,3315.8,0.97038187]
[1768445461105,3.45599944,3316.7,3315.7,0.00452536]
[1768445461417,3.45599944,3316.3,3315.3,1.269]
[1768445461595,3.45599944,3316.3,3315.4,0.97038187]
[1768445462109,3.45599944,3316.3,3315.7,0.97038187]
[1768445462310,3.45599944,3316.3,3315.7,0.97490723]
[1768445463412,3.4605248,3316.3,3315.4,0.97038187]
[1768445463609,4.33739905,3316.2,3315.4,0.97038187]
[1768445463808,3.45599944,3316.2,3315.4,0.97038187]
[1768445464306,3.45599944,3316.2,3315.5,0.00452536]
[1768445465404,3.45599944,3316.2,3314.6,3.017]
[1768445465603,3.45599944,3316.0,3314.9,0.97038187]
[1768445466109,0.88101983,3315.9,3314.9,0.97038187]
[1768445466307,3.45599944,3316.0,3314.9,0.97038187]
[1768445466608,3.45599944,3316.0,3315.1,0.00452536]
[1768445466609,0.88060824,3315.9,3315.1,0.00452536]
[1768445466803,3.45599944,3316.0,3315.1,0.00452536]
[1768445467006,0.88060958,3315.9,3315.1,0.00452536]
[1768445467199,3.45599944,3316.0,3315.1,0.00452536]
[1768445467399,0.8804347,3315.9,3315.1,0.00452536]
[1768445467597,3.45599944,3316.0,3315.1,0.00452536]
[1768445467802,0.88043374,3315.9,3315.1,0.00452536]
[1768445467999,3.45599944,3316.0,3315.1,0.97490723]
[1768445468202,0.00452536,3316.3,3315.7,0.97038187]
[1768445470105,3.45831625,3316.9,3315.5,1.268]
[1768445470310,0.88028044,3316.8,3316.0,0.97038187]
[1768445470503,0.88028044,3316.7,3316.0,0.97038187]
[1768445470707,0.88028044,3316.6,3316.0,0.97038187]
[1768445470914,3.45831625,3316.9,3315.8,0.97038187]
[1768445471217,0.88027364,3316.8,3315.8,0.97038187]
[1768445471512,0.88027364,3316.7,3315.8,0.97038187]
[1768445471707,0.88027364,3316.6,3315.8,0.97038187]
[1768445472017,3.45831625,3316.9,3315.8,0.97038187]
[1768445472218,0.88014526,3316.8,3315.8,0.97038187]
[1768445472412,0.88014526,3316.7,3315.8,0.97038187]
[1768445472715,0.88014526,3316.7,3315.5,1.268]
[1768445472716,3.45831625,3316.9,3316.0,0.97038187]
[1768445472902,0.88024638,3316.8,3316.0,0.97038187]
[1768445473108,3.45831625,3316.9,3316.0,0.97038187]
[1768445473315,4.33623013,3316.8,3315.8,0.97038187]
[1768445473508,3.45599944,3316.8,3315.5,1.268]
[1768445473702,3.45599944,3316.6,3315.5,1.268]
[1768445475820,3.45599944,3316.6,3315.6,0.97038187]
[1768445476814,3.45599944,3316.2,3315.1,0.00452536]
[1768445477021,3.45599944,3316.2,3315.2,0.97038187]
[1768445477218,3.45599944,3316.2,3315.4,0.97038187]
[1768445479119,3.45599944,3316.2,3315.2,0.97038187]
[1768445479320,3.45599944,3316.2,3315.1,0.00452536]
[1768445479619,3.45599944,3316.2,3315.1,0.97490723]
[1768445480620,3.32448196,3315.9,3315.1,0.00452536]
[1768445483326,3.32448196,3315.9,3314.4,0.00388121]
[1768445483327,3.54920744,3315.6,3314.4,0.00388121]
[1768445484222,3.54920744,3315.6,3314.7,0.00452536]
[1768445484422,3.54920744,3315.6,3314.4,0.00388121]
[1768445484625,3.54920744,3315.4,3314.4,0.00388121]
[1768445485221,3.54920744,3315.4,3314.1,0.97038187]
[1768445485417,3.54920744,3315.2,3314.1,0.97038187]
[1768445486327,3.54920744,3315.2,3314.1,0.97276163]
[1768445487133,3.54920744,3315.2,3314.1,0.00237976]
[1768445487432,3.54920744,3315.0,3314.1,0.00237976]
[1768445488624,3.54920744,3314.8,3313.5,0.97038187]
[1768445488927,3.54920744,3314.8,3313.7,0.97038187]
[1768445489832,0.00452536,3314.6,3313.7,0.97325262]
[1768445490225,0.00452536,3314.6,3313.9,0.97038187]
[1768445490428,0.00452536,3314.6,3313.7,0.97325262]
[1768445491035,3.5537328,3314.6,3313.7,0.00287075]
[1768445493340,0.00452536,3314.6,3313.9,0.97038187]
[1768445495944,0.00452536,3314.6,3313.7,0.00287075]
[1768445496127,3.5537328,3314.6,3313.7,0.00287075]
[1768445496641,3.54920744,3314.4,3313.2,1.268]
[1768445497530,3.55279977,3314.4,3313.2,1.27166431]
[1768445497936,3.55279977,3314.4,3313.5,0.00301694]
[1768445498129,0.00452536,3314.6,3313.8,0.97038187]
[1768445499148,0.00708928,3314.6,3313.8,0.97038187]
[1768445499345,0.00708928,3314.6,3313.5,0.00301694]
[1768445499536,0.00708928,3314.6,3313.7,0.97038187]
[1768445499936,3.54920744,3314.3,3313.2,1.27166431]
[1768445500134,0.97038187,3313.8,3312.3,2.23738187]
[1768445500339,3.54920744,3313.9,3312.9,0.97038187]
[1768445500640,0.15088,3314.1,3312.9,0.97038187]
[1768445501036,3.54920744,3314.0,3312.9,0.00272395]
[1768445501241,4.51958931,3313.8,3312.4,0.97038187]
[1768445502240,4.51958931,3313.8,3312.4,0.97395588]
[1768445502949,3.54920744,3313.7,3312.4,0.00357401]
[1768445503139,3.54920744,3313.7,3312.4,0.97395588]
[1768445504350,4.67046931,3314.1,3312.7,0.97038187]
[1768445504645,0.87303338,3314.0,3312.7,0.97038187]
[1768445504852,4.67046931,3314.1,3312.7,0.97038187]
[1768445505039,0.87303406,3314.0,3312.7,0.97038187]
[1768445505235,3.70008744,3314.1,3312.7,0.97038187]
[1768445505439,0.87315266,3314.0,3312.7,0.97038187]
[1768445505644,3.70008744,3314.1,3312.7,0.97038187]
[1768445505844,0.87315093,3314.0,3312.7,0.97038187]
[1768445506045,3.70008744,3314.1,3312.7,0.97038187]
[1768445506246,0.87300235,3314.0,3312.7,0.97038187]
[1768445506443,3.70008744,3314.1,3312.7,0.97038187]
[1768445506655,0.87339087,3314.0,3312.7,0.97038187]
[1768445506847,3.70008744,3314.1,3312.7,0.97038187]
[1768445507048,0.87339169,3314.0,3312.7,0.97038187]
[1768445507248,3.70008744,3314.1,3312.7,0.97038187]
[1768445507451,0.87348228,3314.0,3312.7,0.97038187]
[1768445507637,3.70008744,3314.1,3312.7,0.97038187]
[1768445507842,0.87346201,3314.0,3312.7,0.97038187]
[1768445508042,0.97038187,3314.0,3312.7,0.97038187]
[1768445508254,0.87362718,3313.9,3312.7,0.97038187]
[1768445508550,0.97038187,3314.0,3312.7,0.97038187]
[1768445508750,0.87362903,3313.9,3312.7,0.97038187]
[1768445508951,0.97038187,3314.0,3312.7,0.97038187]
[1768445509151,0.87362757,3313.9,3312.7,0.97038187]
[1768445509351,0.97038187,3314.0,3312.7,0.97038187]
[1768445509552,0.87386815,3313.9,3312.7,0.97038187]
[1768445509743,0.97038187,3314.0,3312.7,0.97038187]
[1768445509942,4.42307543,3313.9,3312.5,0.97038187]
[1768445510145,0.97038187,3313.8,3312.5,0.97038187]
[1768445511455,3.54920744,3313.9,3312.5,0.97038187]
[1768445511752,0.87441946,3313.8,3312.5,0.97038187]
[1768445512055,0.15088,3314.1,3312.6,3.30124345]
[1768445512258,0.87476533,3314.0,3312.7,0.97038187]
[1768445512556,0.87476533,3313.9,3312.7,0.97038187]
[1768445512850,1.12126187,3314.1,3312.7,0.97038187]
[1768445513040,0.87475618,3314.0,3312.7,0.97038187]
[1768445513239,0.87475618,3313.9,3312.7,0.97038187]
[1768445513449,0.87475618,3313.8,3312.6,3.30124345]
[1768445513758,0.15088,3314.1,3312.6,3.30124345]
[1768445513953,0.87516311,3314.0,3312.6,3.30124345]
[1768445514158,0.15088,3314.1,3312.6,3.30124345]
[1768445514159,0.87516311,3313.9,3312.6,3.30124345]
[1768445514348,0.87516311,3313.8,3312.6,3.30124345]
[1768445514548,0.15088,3314.1,3312.6,3.30124345]